bitfinex-derivatives/quotes_SOLF0:USTF0_20260311
["timestamp","ask_amount","ask_price","bid_price","bid_amount"]
[1773190634933,14.15432256,86.081,86.05,3.45390189]
[1773190638433,3.45390189,86.1,86.04,3.45390189]
[1773190638434,10.455,86.072,86.04,3.45390189]
[1773190644634,3.70032256,86.079,86.041,3.66345561]
[1773190646439,14.1304143,86.078,86.041,3.66345561]
[1773190647130,3.6754143,86.077,86.041,3.66345561]
[1773190649735,3.6754143,86.077,85.994,20.93]
[1773190649736,3.6754143,86.059,86.007,3.66345561]
[1773190649942,3.6754143,86.057,86.007,3.66345561]
[1773190650136,3.45390189,86.06,86.011,3.66345561]
[1773190650137,3.6754143,86.055,86.011,3.66345561]
[1773190650337,12.80598768,86.054,86.011,3.66345561]
[1773190650536,3.6754143,86.054,86.011,3.66345561]
[1773190651351,10.458,86.052,86.011,3.66345561]
[1773190652239,10.785391,86.085,86.041,3.66345561]
[1773190652240,9.2501565,86.084,86.041,3.66345561]
[1773190652446,3.6754143,86.082,86.05,3.45390189]
[1773190652645,12.80166923,86.081,86.05,3.45390189]
[1773190652848,9.12625493,86.08,86.05,3.45390189]
[1773190653043,3.6754143,86.077,86.041,3.66345561]
[1773190653243,218.294147,86.115,86.041,3.66345561]
[1773190653244,3.6754143,86.075,86.041,3.66345561]
[1773190653546,9.12625493,86.074,86.041,3.66345561]
[1773190653847,3.6754143,86.075,86.041,3.66345561]
[1773190654037,9.12694872,86.074,86.041,3.66345561]
[1773190654241,3.6754143,86.075,86.041,3.66345561]
[1773190654538,3.6754143,86.075,86.05,3.45390189]
[1773190655448,3.6754143,86.075,86.041,3.66345561]
[1773190658342,3.6754143,86.059,86.008,3.66345561]
[1773190658540,3.6754143,86.059,85.951,32.551]
[1773190658541,3.6754143,86.039,85.996,3.66345561]
[1773190662555,3.6754143,86.038,85.996,3.66345561]
[1773190663548,3.6754143,86.036,85.996,3.66345561]
[1773190664048,3.6754143,86.029,85.984,3.66345561]
[1773190665351,3.6754143,86.026,85.984,3.66345561]
[1773190665851,3.45390189,86.05,85.991,3.66345561]
[1773190666153,14.1344143,86.045,86.001,3.66345561]
[1773190667150,14.1344143,86.045,86.01,3.45390189]
[1773190668554,10.458,86.054,86.011,3.93985664]
[1773190669053,9.02612098,86.053,86.011,3.93985664]
[1773190669253,14.3710447,86.054,86.011,3.93985664]
[1773190669455,4.00584912,86.051,86.011,3.93985664]
[1773190673656,4.00584912,86.047,86.01,3.45390189]
[1773190673858,4.00584912,86.047,86.001,3.91199805]
[1773190675363,10.459,86.046,86.001,3.91199805]
[1773190675855,10.459,86.046,86.003,3.91199805]
[1773190676059,10.459,86.046,86.01,3.45390189]
[1773190676451,10.459,86.046,86.011,3.91199805]
[1773190677152,4.00584912,86.042,86.001,3.91199805]
[1773190677753,4.00584912,86.04,86.001,3.91199805]
[1773190678157,4.00584912,86.039,86.001,3.91199805]
[1773190678361,4.00584912,86.039,85.991,3.91199805]
[1773190678755,4.00584912,86.035,85.991,3.91199805]
[1773190679557,10.46,86.034,85.991,3.91199805]
[1773190679760,14.46584912,86.034,85.991,3.91199805]
[1773190679961,4.00584912,86.033,85.991,3.91199805]
[1773190681161,4.00584912,86.03,85.991,3.91199805]
[1773190681466,4.00584912,86.029,85.98,3.45390189]
[1773190681766,4.00584912,86.009,85.965,3.91199805]
[1773190681961,4.00584912,85.999,85.948,3.91199805]
[1773190682166,4.00584912,85.989,85.948,3.91199805]
[1773190682461,4.00584912,85.986,85.95,3.45390189]
[1773190682658,4.00584912,85.999,85.951,3.91199805]
[1773190682860,4.00584912,85.986,85.929,3.91199805]
[1773190683066,4.00584912,85.986,85.93,3.45390189]
[1773190683257,4.00584912,85.986,85.93,7.36589994]
[1773190683461,4.00584912,85.986,85.931,3.91199805]
[1773190684360,4.00584912,85.986,85.94,3.45390189]
[1773190684556,4.00584912,85.986,85.941,3.91199805]
[1773190685268,4.00584912,85.986,85.95,7.36589994]
[1773190688569,20.921,86.031,85.914,2.02407957]
[1773190688570,3.9886232,86.009,85.96,3.45390189]
[1773190688868,3.9886232,86.009,85.95,3.45390189]
[1773190689065,3.9886232,85.999,85.95,3.45390189]
[1773190689676,3.9886232,85.999,85.95,3.46116383]
[1773190690175,3.9886232,85.999,85.951,3.91199805]
[1773190690474,10.464,85.998,85.951,3.91199805]
[1773190692070,14.46595728,85.998,85.951,3.91199805]
[1773190692274,4.00195728,85.997,85.951,3.91199805]
[1773190692472,4.00195728,85.995,85.94,7.37316188]
[1773190693067,4.00195728,85.985,85.94,7.37316188]
[1773190693871,4.00195728,85.985,85.941,3.91199805]
[1773190694782,10.464,86.001,85.961,3.91199805]
[1773190696477,10.463,86.01,85.961,3.91199805]
[1773190696679,10.463,86.01,85.97,3.46116383]
[1773190697073,14.4288967,86.01,85.97,3.46116383]
[1773190697578,14.4288967,86.01,85.961,3.91199805]
[1773190698176,10.463,86.006,85.961,3.91199805]
[1773190700877,14.27922949,86.006,85.961,3.91199805]
[1773190701780,10.463,86.006,85.971,3.73124084]
[1773190705680,3.81622949,86.009,85.971,3.73124084]
[1773190705882,10.462,86.014,85.98,3.46116383]
[1773190706183,3.81622949,86.013,85.971,3.73124084]
[1773190707382,10.463,86.009,85.971,3.73124084]
[1773190708379,3.81622949,86.025,85.981,3.73124084]
[1773190708685,3.81622949,86.025,85.99,3.46116383]
[1773190708885,3.81622949,86.025,85.981,3.73124084]
[1773190710486,3.81622949,86.022,85.981,3.73124084]
[1773190712490,3.81622949,86.019,85.981,3.73124084]
[1773190716093,3.46116383,86.03,85.98,3.46116383]
[1773190716094,3.46116383,86.03,85.983,3.73124084]
[1773190716287,3.81622949,86.037,85.991,3.73124084]
[1773190717000,10.46,86.031,85.991,3.73124084]
[1773190717296,14.27622949,86.031,85.991,3.73124084]
[1773190717695,3.81622949,86.03,85.991,3.73124084]
[1773190717898,10.459,86.039,86.0,3.46116383]
[1773190718396,10.459,86.039,86.0,7.19240467]
[1773190719089,3.81622949,86.042,86.0,7.19240467]
[1773190719090,3.81622949,86.042,86.001,3.73124084]
[1773190719291,10.458,86.048,86.01,3.46116383]
[1773190719899,3.81622949,86.045,86.0,3.46116383]
[1773190720800,3.81622949,86.035,85.991,3.73124084]
[1773190723098,3.81622949,86.025,85.991,3.73124084]
[1773190725300,3.81622949,86.033,85.991,3.73124084]
[1773190725702,3.81622949,86.049,85.991,3.73124084]
[1773190726003,3.46116383,86.05,85.945,34.85]
[1773190726004,14.27522949,86.044,86.001,3.73124084]
[1773190726304,3.81622949,86.043,86.001,3.73124084]
[1773190726704,3.81622949,86.039,86.001,3.73124084]
[1773190728509,10.46,86.038,86.001,3.73124084]
[1773190730100,4.04883308,86.037,86.001,3.73124084]
[1773190731406,4.04883308,86.035,86.001,3.73124084]
[1773190732511,10.46,86.034,86.001,3.73124084]
[1773190735406,10.461,86.027,85.99,7.46707322]
[1773190735607,4.04883308,86.026,85.991,4.00590939]
[1773190736208,4.04883308,86.023,85.991,4.00590939]
[1773190736416,4.04883308,86.023,85.945,34.85]
[1773190736417,4.04883308,86.023,85.975,10.467]
[1773190736713,4.04883308,86.023,85.98,3.46116383]
[1773190737415,10.462,86.019,85.98,3.46116383]
[1773190738506,4.04883308,86.023,85.981,4.00590939]
[1773190739216,9.02974474,86.022,85.981,4.00590939]
[1773190739514,4.04883308,86.023,85.981,4.00590939]
[1773190739714,9.02940907,86.022,85.981,4.00590939]
[1773190739914,4.04883308,86.023,85.981,4.00590939]
[1773190740217,9.02836325,86.022,85.981,4.00590939]
[1773190740420,4.04883308,86.023,85.981,4.00590939]
[1773190740616,9.02914517,86.022,85.981,4.00590939]
[1773190740815,4.04883308,86.023,85.981,4.00590939]
[1773190741117,9.02914517,86.022,85.981,4.00590939]
[1773190741318,9.02914517,86.021,85.981,4.00590939]
[1773190741619,4.04883308,86.023,85.981,4.00590939]
[1773190741920,4.04883308,86.021,85.981,4.00590939]
[1773190742920,4.04883308,86.018,85.971,4.00590939]
[1773190743118,4.04883308,86.016,85.971,4.00590939]
[1773190743317,4.04883308,86.014,85.971,4.00590939]
[1773190747119,9.03814767,86.013,85.971,4.00590939]
[1773190747421,4.04883308,86.014,85.971,4.00590939]
[1773190747622,9.0382849,86.013,85.971,4.00590939]
[1773190747923,4.04883308,86.014,85.971,4.00590939]
[1773190748223,9.03812753,86.013,85.971,4.00590939]
[1773190748415,4.04883308,86.014,85.971,4.00590939]
[1773190748814,9.03457314,86.013,85.971,4.00590939]
[1773190749127,3.46116383,86.01,85.971,4.00590939]
[1773190749426,4.04883308,86.008,85.971,4.00590939]
[1773190749624,4.04883308,86.006,85.971,4.00590939]
[1773190750024,4.04883308,86.006,85.961,4.00590939]
[1773190751921,12.99974639,86.005,85.961,4.00590939]
[1773190752120,4.04883308,86.005,85.961,4.00590939]
[1773190757127,4.04883308,86.003,85.961,4.00590939]
[1773190758219,4.04883308,86.012,85.971,4.00590939]
[1773190759423,4.05567918,86.01,85.971,4.00590939]
[1773190759826,4.05567918,85.999,85.95,3.4599658]
[1773190760026,4.05567918,85.999,85.951,4.03934305]
[1773190761430,4.05567918,85.993,85.951,4.03934305]
[1773190764325,4.05567918,85.991,85.951,4.03934305]
[1773190765429,14.52067918,85.99,85.951,4.03934305]
[1773190765735,4.05567918,85.989,85.951,4.03934305]
[1773190765926,4.05567918,85.989,85.898,20.953]
[1773190765927,4.05567918,85.966,85.916,4.03934305]
[1773190766131,4.05567918,85.966,85.921,4.03934305]
[1773190772328,4.05567918,85.966,85.922,10.474]
[1773190772535,4.05567918,85.966,85.923,4.03934305]
[1773190773134,4.05567918,85.959,85.923,4.03934305]
[1773190773528,3.4599658,85.97,85.923,4.03934305]
[1773190773729,28.95680972,86.063,85.92,3.4599658]
[1773190773730,4.05567918,85.971,85.926,4.03934305]
[1773190775338,4.05567918,85.971,85.929,4.03934305]
[1773190778840,4.05567918,85.985,85.941,4.03934305]
[1773190780438,4.05567918,85.983,85.941,4.03934305]
[1773190781440,4.05567918,85.981,85.941,4.03934305]
[1773190781930,10.467,85.974,85.941,4.03934305]
[1773190782131,4.05567918,85.973,85.93,4.03934305]
[1773190782342,4.05567918,85.973,85.931,4.03934305]
[1773190782735,4.05567918,85.969,85.931,4.03934305]
[1773190783341,14.52367918,85.969,85.931,4.03934305]
[1773190783538,4.05567918,85.968,85.931,4.03934305]
[1773190783942,10.468,85.965,85.931,4.03934305]
[1773190784142,14.52367918,85.965,85.931,4.03934305]
[1773190785839,4.05567918,85.965,85.931,4.03934305]
[1773190786436,14.52267918,85.973,85.931,4.03934305]
[1773190786638,4.05567918,85.972,85.931,4.03934305]
[1773190788844,10.76280567,86.013,85.894,2.02469193]
[1773190788845,4.04688586,85.967,85.92,3.4599658]
[1773190789149,4.04688586,85.967,85.921,4.03815296]
[1773190790345,4.04688586,85.967,85.923,3.77793706]
[1773190790547,4.04688586,85.967,85.931,3.77793706]
[1773190792138,4.03133296,85.983,85.94,3.4599658]
[1773190792339,4.03133296,85.983,85.941,3.77793706]
[1773190792947,4.03133296,85.983,85.947,3.77793706]
[1773190795147,4.03133296,85.979,85.941,3.77793706]
[1773190795347,4.03133296,85.999,85.96,3.4599658]
[1773190795643,4.03133296,85.999,85.951,3.77793706]
[1773190795843,4.03133296,85.989,85.951,3.77793706]
[1773190797448,10.466,85.985,85.951,3.77793706]
[1773190799143,10.465,85.995,85.951,3.77793706]
[1773190799446,4.03133296,85.999,85.951,3.77793706]
[1773190800240,4.03133296,85.999,85.96,7.23858134]
[1773190800750,4.03133296,86.011,85.97,7.23858134]
[1773190801647,4.03133296,86.011,85.971,3.77793706]
[1773190802046,2.02363819,86.064,85.921,20.948]
[1773190802047,4.03133296,86.029,85.981,3.77793706]
[1773190802246,8.74171904,86.028,85.981,3.77793706]
[1773190802446,8.74171904,86.027,85.981,3.77793706]
[1773190802646,8.74171904,86.026,85.981,3.77793706]
[1773190802842,8.74171904,86.025,85.981,3.77793706]
[1773190803043,4.03133296,86.019,85.971,3.77793706]
[1773190803649,20.913,86.066,85.96,3.77793706]
[1773190803650,4.03133296,85.999,85.96,3.77793706]
[1773190806452,4.03133296,85.989,85.949,3.77793706]
[1773190807655,4.03133296,85.989,85.951,10.47]
[1773190808050,4.03133296,85.989,85.949,3.77793706]
[1773190808949,3.46064428,86.0,85.951,3.77793706]
[1773190809149,4.03133296,85.999,85.951,3.77793706]
[1773190811159,4.03133296,86.012,85.97,7.23858134]
[1773190811359,12.84883472,86.011,85.97,7.23858134]
[1773190811658,4.03133296,86.009,85.97,7.23775194]
[1773190811854,4.03133296,86.009,85.971,3.77793706]
[1773190815559,10.83444071,86.038,85.971,3.77793706]
[1773190815560,4.03133296,86.019,85.971,3.77793706]
[1773190815754,4.03133296,86.019,85.981,3.77793706]
[1773190816957,4.03133296,86.019,85.919,20.948]
[1773190816958,4.03133296,86.032,86.0,3.45981488]
[1773190817558,4.03133296,86.032,85.991,3.77793706]
[1773190819060,4.03133296,86.009,85.966,3.77793706]
[1773190819262,4.03133296,86.009,85.951,3.77793706]
[1773190819462,3.88452393,85.989,85.941,3.89836131]
[1773190820364,3.88452393,85.986,85.941,3.89836131]
[1773190822257,3.88452393,85.979,85.932,10.472]
[1773190822954,3.88452393,85.979,85.93,3.45981488]
[1773190824354,3.45981488,85.98,85.929,3.89836131]
[1773190824355,3.88452393,85.969,85.929,3.89836131]
[1773190827861,3.88452393,85.982,85.94,7.35817619]
[1773190828066,3.88452393,85.982,85.941,3.89836131]
[1773190830861,3.88452393,85.994,85.95,3.45981488]
[1773190832266,3.88452393,85.989,85.943,3.89836131]
[1773190840465,3.88452393,85.989,85.95,3.45981488]
[1773190840669,14.46571951,86.039,85.898,20.953]
[1773190840670,3.88452393,86.0,85.961,3.89836131]
[1773190850583,3.78729433,85.996,85.95,3.69127877]
[1773190850776,3.78729433,85.996,85.951,3.69127877]
[1773190851386,3.78729433,86.007,85.961,3.69127877]
[1773190852086,3.78729433,86.005,85.961,3.69127877]
[1773190852480,3.78729433,85.999,85.95,3.69127877]
[1773190852675,3.78729433,85.997,85.95,3.69127877]
[1773190852881,3.78729433,85.995,85.95,3.69127877]
[1773190853079,3.78729433,85.995,85.961,3.69127877]
[1773190853282,3.78729433,86.009,85.961,3.69127877]
[1773190853484,3.78729433,86.007,85.961,3.69127877]
[1773190854384,3.78729433,86.007,85.971,3.69127877]
[1773190855589,3.78729433,85.999,85.95,3.45981488]
[1773190855789,3.78729433,85.999,85.951,3.69127877]
[1773190856885,3.78729433,85.995,85.941,3.69127877]
[1773190857085,3.78729433,85.989,85.941,3.69127877]
[1773190858379,3.78729433,85.988,85.941,3.69127877]
[1773190860584,3.78729433,86.0,85.951,3.69127877]
[1773190860789,3.78729433,86.0,85.961,3.69127877]
[1773190860988,3.45981488,86.02,85.961,3.69127877]
[1773190861188,21.58825059,86.058,85.898,20.953]
[1773190861189,3.78729433,86.017,85.981,3.69127877]
[1773190862494,3.78729433,86.017,85.981,14.15727877]
[1773190863286,3.78729433,86.029,85.982,3.69127877]
[1773190863484,18.03284198,86.028,85.982,3.69127877]
[1773190863683,8.83456475,86.027,85.982,3.69127877]
[1773190863885,8.83456475,86.026,85.982,3.69127877]
[1773190864090,8.83456475,86.025,85.982,3.69127877]
[1773190864395,3.78729433,86.029,85.99,3.45981488]
[1773190864694,3.78729433,86.027,85.982,3.69127877]
[1773190864888,3.78729433,86.025,85.982,3.69127877]
[1773190865089,8.83292124,86.024,85.982,3.69127877]
[1773190865291,8.83292124,86.023,85.982,3.69127877]
[1773190865589,8.83292124,86.022,85.982,3.69127877]
[1773190865789,3.78729433,86.025,85.982,3.69127877]
[1773190865991,8.82976721,86.024,85.982,3.69127877]
[1773190866190,8.82976721,86.023,85.982,3.69127877]
[1773190866395,3.78729433,86.025,85.982,3.69127877]
[1773190866692,8.82794451,86.024,85.982,3.69127877]
[1773190866894,8.82794451,86.023,85.982,3.69127877]
[1773190867091,3.78729433,86.025,85.982,3.69127877]
[1773190878816,3.78729433,86.019,85.979,10.467]
[1773190879014,3.78729433,86.019,85.982,3.69127877]
[1773190880315,10.83444071,86.086,86.01,3.45833023]
[1773190880511,3.45833023,86.1,86.051,4.06020588]
[1773190881313,3.45833023,86.1,86.051,14.51820588]
[1773190881514,3.45833023,86.08,86.034,4.06020588]
[1773190882016,3.45833023,86.12,86.06,3.45833023]
[1773190882216,2.17697382,86.118,86.06,3.45833023]
[1773190882410,2.17697382,86.116,86.06,3.45833023]
[1773190882615,2.17697382,86.114,86.06,3.45833023]
[1773190882916,2.17697382,86.112,86.06,3.45833023]
[1773190883115,2.17697382,86.11,86.06,3.45833023]
[1773190885320,2.24503098,86.089,86.03,3.45833023]
[1773190885618,2.24503098,86.087,86.02,3.45833023]
[1773190885819,2.24503098,86.085,86.02,3.45833023]
[1773190886011,2.24503098,86.083,86.02,3.45833023]
[1773190886221,2.24503098,86.079,86.014,10.462]
[1773190886416,2.24503098,86.079,86.02,3.45833023]
[1773190888520,2.24503098,86.079,86.03,3.45833023]
[1773190889516,2.24503098,86.079,86.032,10.46]
[1773190890817,2.24503098,86.079,86.05,3.45833023]
[1773190891022,2.28869623,86.104,86.06,3.45833023]
[1773190891522,2.28869623,86.104,86.043,4.06020588]
[1773190891523,2.28869623,86.104,86.07,3.45833023]
[1773190892517,2.28869623,86.104,86.08,3.45833023]
[1773190894029,2.28869623,86.104,86.06,3.45833023]
[1773190895025,2.28869623,86.104,86.07,3.45833023]
[1773190897234,2.28869623,86.104,86.06,3.45833023]
[1773190897629,2.28869623,86.104,86.07,3.45833023]
[1773190904228,2.28869623,86.104,86.08,3.45833023]
[1773190904627,2.2834305,86.122,86.08,3.45833023]
[1773190905630,9.12372486,86.134,86.1,3.45833023]
[1773190905631,2.28447461,86.134,86.1,3.45833023]
[1773190905834,2.28447461,86.134,86.11,3.45833023]
[1773190906240,2.28447461,86.134,86.1,3.45833023]
[1773190907334,2.28447461,86.134,86.09,3.45833023]
[1773190908040,2.28447461,86.134,86.1,3.45833023]
[1773190911344,2.28447461,86.134,86.11,3.45833023]
[1773190911844,2.28310371,86.147,86.11,3.45833023]
[1773190917644,2.28310371,86.147,86.111,3.86855867]
[1773190917946,2.28310371,86.147,86.12,3.45833023]
[1773190920649,2.28310371,86.147,86.111,3.86855867]
[1773190922152,9.12139009,86.169,86.13,3.45833023]
[1773190922457,2.28339283,86.171,86.12,3.45833023]
[1773190922844,2.28339283,86.169,86.111,3.86855867]
[1773190923155,2.28339283,86.167,86.12,3.45833023]
[1773190924154,9.13383599,86.166,86.12,3.45833023]
[1773190924453,3.45833023,86.18,86.12,3.45833023]
[1773190924454,2.29144831,86.164,86.12,3.45833023]
[1773190925153,2.29144831,86.162,86.12,3.45833023]
[1773190925359,2.29144831,86.162,86.121,3.86855867]
[1773190926158,9.13788389,86.161,86.111,3.86855867]
[1773190926355,2.31642004,86.159,86.111,3.86855867]
[1773190927658,2.31642004,86.159,86.12,3.45833023]
[1773190928055,2.31642004,86.159,86.111,3.86855867]
[1773190930058,2.31642004,86.159,86.113,3.86855867]
[1773190930555,2.34102563,86.184,86.131,3.86855867]
[1773190930753,2.34102563,86.182,86.131,3.86855867]
[1773190930951,2.34102563,86.18,86.131,3.86855867]
[1773190931156,2.34102563,86.178,86.131,3.86855867]
[1773190931354,2.3600003,86.176,86.131,3.86855867]
[1773190932157,2.3600003,86.174,86.131,3.86855867]
[1773190934254,2.36047013,86.172,86.131,3.86855867]
[1773190936260,11.42857452,86.171,86.131,3.86855867]
[1773190936462,2.33298664,86.171,86.131,3.86855867]
[1773190937854,2.33298664,86.171,86.133,3.86855867]
[1773190938160,2.36505958,86.189,86.141,3.86855867]
[1773190938363,2.36505958,86.187,86.141,3.86855867]
[1773190938563,2.36505958,86.185,86.141,3.86855867]
[1773190938864,9.09403693,86.184,86.141,3.86855867]
[1773190939059,9.09403693,86.183,86.141,3.86855867]
[1773190939262,9.09403693,86.182,86.141,3.86855867]
[1773190939462,2.36505958,86.185,86.141,3.86855867]
[1773190939763,9.09373145,86.184,86.141,3.86855867]
[1773190939958,9.09373145,86.183,86.141,3.86855867]
[1773190940158,2.36505958,86.185,86.141,3.86855867]
[1773190940364,9.09380889,86.184,86.141,3.86855867]
[1773190940565,9.09380889,86.183,86.141,3.86855867]
[1773190940765,2.36505958,86.185,86.141,3.86855867]
[1773190940966,9.09380793,86.184,86.141,3.86855867]
[1773190941164,9.09380793,86.183,86.141,3.86855867]
[1773190941468,2.36505958,86.185,86.141,3.86855867]
[1773190941666,11.44927355,86.184,86.141,3.86855867]
[1773190941866,9.09425487,86.183,86.141,3.86855867]
[1773190942165,2.35501868,86.184,86.141,3.86855867]
[1773190942166,9.09591012,86.182,86.141,3.86855867]
[1773190942357,2.35501868,86.184,86.141,3.86855867]
[1773190942562,9.09509353,86.183,86.141,3.86855867]
[1773190942759,9.09509353,86.182,86.141,3.86855867]
[1773190942957,2.35501868,86.184,86.141,3.86855867]
[1773190943163,2.35501868,86.182,86.141,3.86855867]
[1773190943364,2.35501868,86.18,86.141,3.86855867]
[1773190946372,2.35895813,86.178,86.141,3.86855867]
[1773190946667,2.35895813,86.178,86.13,3.92693288]
[1773190946869,2.35895813,86.159,86.115,3.92693288]
[1773190947770,10.77091475,86.185,86.103,3.92693288]
[1773190947771,2.34343724,86.149,86.103,3.92693288]
[1773190949869,3.44732488,86.16,86.103,3.92693288]
[1773190950075,2.35394566,86.179,86.121,3.92693288]
[1773190950276,2.35394566,86.177,86.121,3.92693288]
[1773190950476,2.35394566,86.172,86.121,3.92693288]
[1773190950675,2.35394566,86.169,86.121,3.92693288]
[1773190950875,9.11761102,86.168,86.121,3.92693288]
[1773190951175,9.11761102,86.167,86.121,3.92693288]
[1773190951374,2.35394566,86.169,86.121,3.92693288]
[1773190951375,10.444,86.165,86.121,3.92693288]
[1773190951675,9.11761102,86.164,86.121,3.92693288]
[1773190951874,9.11761102,86.163,86.121,3.92693288]
[1773190952076,9.11761102,86.162,86.121,3.92693288]
[1773190952276,10.444,86.165,86.121,3.92693288]
[1773190952475,9.12488438,86.164,86.121,3.92693288]
[1773190952774,9.12488438,86.163,86.121,3.92693288]
[1773190952976,9.12488438,86.162,86.121,3.92693288]
[1773190953177,9.12606296,86.161,86.121,3.92693288]
[1773190953473,10.444,86.165,86.121,3.92693288]
[1773190953671,9.12649344,86.164,86.121,3.92693288]
[1773190953870,2.35394566,86.169,86.121,3.92693288]
[1773190953871,9.12649344,86.163,86.121,3.92693288]
[1773190954073,2.35394566,86.169,86.121,3.92693288]
[1773190954268,9.12756977,86.168,86.121,3.92693288]
[1773190954466,9.12756977,86.167,86.121,3.92693288]
[1773190954676,9.12756977,86.166,86.121,3.92693288]
[1773190954974,9.12756977,86.165,86.121,3.92693288]
[1773190955275,9.12756977,86.164,86.124,3.92693288]
[1773190955475,2.35394566,86.169,86.124,3.92693288]
[1773190955674,9.12956006,86.168,86.124,3.92693288]
[1773190955875,9.12956006,86.167,86.124,3.92693288]
[1773190956078,9.12956006,86.166,86.124,3.92693288]
[1773190956377,9.12956006,86.165,86.124,3.92693288]
[1773190956674,9.12956006,86.164,86.124,3.92693288]
[1773190956975,9.12956006,86.163,86.124,3.92693288]
[1773190957176,9.12956006,86.162,86.124,3.92693288]
[1773190957372,2.35394566,86.169,86.124,3.92693288]
[1773190957670,9.13331567,86.168,86.124,3.92693288]
[1773190957870,9.13331567,86.167,86.124,3.92693288]
[1773190958076,12.81562097,86.165,86.124,3.92693288]
[1773190958272,2.37162097,86.163,86.111,3.92693288]
[1773190958574,2.37162097,86.159,86.111,3.92693288]
[1773190958775,9.13331567,86.158,86.113,3.92693288]
[1773190958972,2.37162097,86.168,86.121,3.92693288]
[1773190959175,2.37162097,86.166,86.121,3.92693288]
[1773190959479,12.81627818,86.163,86.121,3.92693288]
[1773190959676,9.13521156,86.162,86.121,3.92693288]
[1773190959976,9.13521156,86.161,86.121,3.92693288]
[1773190960181,9.13776929,86.16,86.121,3.92693288]
[1773190960377,12.81627818,86.163,86.121,3.92693288]
[1773190960570,9.13806307,86.162,86.121,3.92693288]
[1773190960773,17.95128276,86.161,86.121,3.92693288]
[1773190961076,17.95128276,86.16,86.121,3.92693288]
[1773190961375,17.95128276,86.159,86.121,3.92693288]
[1773190961676,17.95128276,86.158,86.121,3.92693288]
[1773190961877,8.81321969,86.157,86.121,3.92693288]
[1773190962078,8.81321969,86.156,86.121,3.92693288]
[1773190962577,8.81321969,86.155,86.121,3.92693288]
[1773190962778,8.81321969,86.154,86.121,3.92693288]
[1773190962982,8.81321969,86.153,86.121,3.92693288]
[1773190963175,8.81321969,86.152,86.121,3.92693288]
[1773190963378,12.81627818,86.163,86.121,3.92693288]
[1773190963574,18.06779435,86.162,86.121,3.92693288]
[1773190963770,8.81688049,86.161,86.121,3.92693288]
[1773190964079,18.06779435,86.16,86.121,3.92693288]
[1773190964378,8.81688049,86.159,86.121,3.92693288]
[1773190964581,8.81688049,86.158,86.121,3.92693288]
[1773190964777,8.81688049,86.157,86.121,3.92693288]
[1773190964969,8.81688049,86.156,86.121,3.92693288]
[1773190965170,3.44732488,86.15,86.11,3.92693288]
[1773190965372,3.44732488,86.15,86.044,20.918]
[1773190965373,2.37936233,86.148,86.091,3.92693288]
[1773190965577,2.37936233,86.129,86.091,3.92693288]
[1773190965777,8.81688049,86.128,86.091,3.92693288]
[1773190965979,8.81688049,86.127,86.091,3.92693288]
[1773190966178,8.81688049,86.126,86.091,3.92693288]
[1773190966374,2.37936233,86.129,86.091,3.92693288]
[1773190966579,2.37936233,86.127,86.091,3.92693288]
[1773190966781,8.82154204,86.126,86.091,3.92693288]
[1773190967088,2.37936233,86.146,86.091,3.92693288]
[1773190967385,8.82152175,86.145,86.091,3.92693288]
[1773190967587,8.82152175,86.144,86.101,3.92693288]
[1773190967791,3.44732488,86.16,86.111,3.92693288]
[1773190967792,8.82152175,86.143,86.111,3.92693288]
[1773190967982,8.82152175,86.142,86.111,3.92693288]
[1773190968182,8.82152175,86.141,86.111,3.92693288]
[1773190968382,8.82152175,86.14,86.111,3.92693288]
[1773190968583,8.82152175,86.139,86.111,3.92693288]
[1773190968785,8.82152175,86.138,86.111,3.92693288]
[1773190968985,8.82152175,86.137,86.111,3.92693288]
[1773190969185,2.43706162,86.159,86.111,3.92693288]
[1773190969386,8.81755053,86.158,86.111,3.92693288]
[1773190969588,8.81755053,86.157,86.111,3.92693288]
[1773190969786,8.81755053,86.156,86.111,3.92693288]
[1773190969987,8.81755053,86.155,86.111,3.92693288]
[1773190970187,8.81755053,86.154,86.111,3.92693288]
[1773190970386,2.36634189,86.152,86.111,3.92693288]
[1773190970587,8.81755053,86.151,86.111,3.92693288]
[1773190970785,8.81755053,86.15,86.111,3.92693288]
[1773190970986,8.81755053,86.149,86.111,3.92693288]
[1773190971189,8.81755053,86.148,86.111,3.92693288]
[1773190971391,8.81755053,86.147,86.111,3.92693288]
[1773190971695,8.81755053,86.146,86.111,3.92693288]
[1773190971991,8.81755053,86.145,86.111,3.92693288]
[1773190972189,8.81755053,86.144,86.111,3.92693288]
[1773190972491,8.81755053,86.143,86.111,3.92693288]
[1773190972687,8.81755053,86.142,86.111,3.92693288]
[1773190972887,8.81755053,86.141,86.111,3.92693288]
[1773190973093,8.81755053,86.14,86.111,3.92693288]
[1773190973291,2.36634189,86.152,86.111,3.92693288]
[1773190973491,8.81794244,86.151,86.111,3.92693288]
[1773190973790,8.81794244,86.15,86.111,3.92693288]
[1773190973991,8.81794244,86.149,86.111,3.92693288]
[1773190974188,18.06894858,86.148,86.111,3.92693288]
[1773190974382,18.06894858,86.147,86.111,3.92693288]